fUST/lending_fUST_20260107
["ID","MTS","AMOUNT","RATE_DAILY","PERIOD"]
[400669941,1767775880647,-548.79,0.00029589,2]
[400669942,1767775880658,-5656.2215875,0.00029589,2]
[400669943,1767775880669,-689.83,0.00029589,2]
[400669944,1767775880678,-500.0,0.00029589,2]
[400669945,1767775880688,-172.15995638,0.00029589,2]
[400669946,1767775880698,-215.67315328,0.00029589,2]
[400669947,1767775880708,-690.11,0.00029589,2]
[400669948,1767775880717,-500.0,0.00029589,2]
[400669949,1767775880728,-500.0,0.00029589,2]
[400669950,1767775880739,-500.0,0.00029589,2]
[400669951,1767775880749,-836.4,0.00029589,2]
[400669952,1767775880759,-500.0,0.00029589,2]
[400669953,1767775880768,-500.0,0.00029589,2]
[400669954,1767775880779,-513.68011347,0.00029589,2]
[400669955,1767775880788,-797.84,0.00029589,2]
[400669956,1767775880798,-500.0,0.00029589,2]
[400669957,1767775880806,-3088.57,0.00029589,2]
[400669958,1767775880819,-500.0,0.00029589,2]
[400669959,1767775880829,-500.0,0.00029589,2]
[400669960,1767775880838,-1050.0,0.00029589,5]
[400669961,1767775880848,-550.0,0.00029589,5]
[400669962,1767775880858,-550.0,0.00029589,5]
[400669963,1767775880867,-243.07,0.000296,7]
[400669964,1767775880876,-25963.54,0.000296,2]
[400669965,1767775880886,-2200.0,0.000296,7]
[400669966,1767775880895,-2200.0,0.00029635,7]
[400669967,1767775880904,-5000.0,0.00029663,2]
[400669968,1767775880914,-2200.0,0.00029665,7]
[400669969,1767775880924,-32261.07,0.00029692,2]
[400669970,1767775880934,-553.64373807,0.00029692,2]
[400669971,1767775880944,-2674.60743027,0.00029692,2]
[400669972,1767775880954,-1908.17,0.000297,7]
[400669973,1767775880963,-357.4,0.000297,2]
[400669974,1767775880973,-258.12,0.000297,7]
[400669975,1767775880983,-500.0,0.00029821,2]
[400669976,1767775880995,-500.0,0.00029821,2]
[400669977,1767775881004,-2251.87,0.00029821,2]
[400669978,1767775881014,-637.59,0.00029821,2]
[400669979,1767775881024,-3887.57795612,0.00029848,30]
[400669980,1767775881034,-2200.0,0.00029859,7]
[400669981,1767775881043,-500.0,0.00029863,2]
[400669982,1767775881052,-500.0,0.00029863,2]
[400669983,1767775881062,-503.99835386,0.00029863,2]
[400669984,1767775881071,-500.0,0.00029863,2]
[400669985,1767775881080,-500.0,0.00029863,2]
[400669986,1767775881089,-359.86544913,0.00029863,2]
[400669987,1767775881099,-557.84,0.00029863,2]
[400669988,1767775881109,-500.0,0.00029863,2]
[400669989,1767775881118,-500.0,0.00029863,2]
[400669990,1767775881128,-500.0,0.00029863,2]
[400669991,1767775881137,-500.0,0.00029863,2]
[400669992,1767775881147,-1000.0,0.00029863,2]
[400669993,1767775881158,-500.0,0.00029863,2]
[400669994,1767775881167,-582.84,0.00029863,2]
[400669995,1767775881176,-913.08,0.00029863,2]
[400669996,1767775881185,-500.0,0.00029863,2]
[400669997,1767775881195,-500.0,0.00029863,2]
[400669998,1767775881204,-500.0,0.00029863,2]
[400669999,1767775881213,-1000.0,0.00029863,2]
[400670000,1767775881223,-500.0,0.00029863,2]
[400670001,1767775881234,-756.53,0.00029863,2]
[400670002,1767775881244,-200.0,0.00029863,2]
[400670003,1767775881253,-500.0,0.00029863,2]
[400670004,1767775881262,-500.0,0.00029863,2]
[400670005,1767775881272,-500.0,0.00029863,2]
[400670006,1767775881281,-500.0,0.00029863,2]
[400670007,1767775881291,-500.0,0.00029863,2]
[400670008,1767775881300,-3991.84,0.00029863,2]
[400670009,1767775881310,-500.0,0.00029863,2]
[400670010,1767775881319,-500.0,0.00029863,2]
[400670011,1767775881328,-500.0,0.00029863,2]
[400670012,1767775881339,-500.0,0.00029863,2]
[400670013,1767775881448,-725.03,0.00029863,2]
[400670014,1767775881459,-500.0,0.00029863,2]
[400670015,1767775881468,-500.0,0.00029863,2]
[400670016,1767775881478,-500.0,0.00029863,2]
[400670017,1767775881489,-500.0,0.00029863,2]
[400670018,1767775881498,-836.74,0.00029863,2]
[400670019,1767775881508,-500.0,0.00029863,2]
[400670020,1767775881517,-956.27,0.00029863,2]
[400670021,1767775881527,-500.0,0.00029863,2]
[400670022,1767775881537,-4613.91,0.00029863,2]
[400670023,1767775881546,-678.0,0.00029863,2]
[400670024,1767775881556,-14665.45,0.00029863,2]
[400670025,1767775881565,-500.0,0.00029863,2]
[400670026,1767775881575,-500.0,0.00029863,2]
[400670027,1767775881585,-168.0048155,0.00029863,2]
[400670028,1767775881594,-500.0,0.00029863,2]
[400670029,1767775881604,-500.0,0.00029863,2]
[400670030,1767775881613,-2787.6,0.00029863,2]
[400670031,1767775881623,-661.34,0.00029863,2]
[400670032,1767775881633,-215.66476172,0.00029863,2]
[400670033,1767775881644,-500.0,0.00029863,2]
[400670034,1767775881654,-172.28344692,0.00029863,2]
[400670035,1767775881664,-505.05,0.00029863,2]
[400670036,1767775881673,-3024.23,0.00029863,2]
[400670037,1767775881683,-717.62,0.00029863,2]
[400670038,1767775881694,-500.0,0.00029863,2]
[400670039,1767775881703,-909.99,0.00029863,2]
[400670040,1767775881712,-500.0,0.00029863,2]
[400670041,1767775881721,-601.36,0.00029863,2]
[400670042,1767775881732,-287.03308368,0.00029863,2]
[400670043,1767775881743,-500.0,0.00029863,2]
[400670044,1767775881752,-500.0,0.00029863,2]
[400670045,1767775881767,-853.68,0.00029863,2]
[400670046,1767775881776,-574.41747341,0.00029863,2]
[400670047,1767775881786,-500.0,0.00029863,2]
[400670048,1767775881796,-1076.6,0.00029863,2]
[400670049,1767775881805,-343.18626202,0.00029863,2]
[400670050,1767775881814,-497.75306361,0.00029863,2]
[400670051,1767775881823,-548.79,0.00029863,2]
[400670052,1767775881833,-5656.2215875,0.00029863,2]
[400670053,1767775881843,-689.83,0.00029863,2]
[400670054,1767775881853,-500.0,0.00029863,2]
[400670055,1767775881862,-690.11,0.00029863,2]
[400670056,1767775881872,-162.51685437,0.00029863,2]
[400670057,1767775881882,-500.0,0.00029863,2]
[400670058,1767775881891,-500.0,0.00029863,2]
[400670059,1767775881901,-836.4,0.00029863,2]
[400670060,1767775881911,-500.0,0.00029863,2]
[400670061,1767775881921,-500.0,0.00029863,2]
[400670062,1767775881931,-797.84,0.00029863,2]
[400670063,1767775881941,-500.0,0.00029863,2]
[400670064,1767775881951,-3088.57,0.00029863,2]
[400670065,1767775881961,-500.0,0.00029863,2]
[400670066,1767775881970,-500.0,0.00029863,2]
[400670067,1767775881979,-1041.66666667,0.000299,30]
[400670068,1767775881989,-2000.0,0.00029928,7]
[400670069,1767775881999,-412.72451996,0.0003,10]
[400670070,1767775882008,-207.97855793,0.0003,30]
[400670071,1767775882017,-9242.35901551,0.0003,7]
[400670072,1767775882027,-17930.91843581,0.0003,2]
[400670073,1767775882036,-12215.17550631,0.0003,2]
[400670074,1767775882046,-31360.25705451,0.0003,30]
[400670075,1767775882055,-1125.0,0.0003,5]
[400670076,1767775882064,-165.46,0.0003,5]
[400670077,1767775882074,-300.0,0.0003,60]
[400670078,1767775882083,-269.6751108,0.0003,2]
[400670079,1767775882092,-14009.63140241,0.0003,7]
[400670080,1767775882102,-1097.0,0.0003,30]
[400670081,1767775882111,-444.0,0.0003,2]
[400670082,1767775882120,-151.0,0.0003,7]
[400670083,1767775882129,-151.0,0.0003,7]
[400670084,1767775882138,-151.0,0.0003,7]
[400670085,1767775882147,-151.0,0.0003,7]
[400670086,1767775882157,-1041.66666667,0.0003,10]
[400670087,1767775882166,-153.683464,0.0003,7]
[400670088,1767775882175,-184.0,0.0003,14]
[400670089,1767775882185,-166.0,0.0003,14]
[400670090,1767775882195,-316.0,0.0003,14]
[400670091,1767775882205,-500.0,0.0003005,7]
[400670092,1767775882215,-1097.0,0.0003006,30]
[400670093,1767775882225,-157.01821301,0.00030074,10]
[400670094,1767775882234,-500.0,0.00030095,2]
[400670095,1767775882244,-500.0,0.00030095,2]
[400670096,1767775882255,-2251.87,0.00030095,2]
[400670097,1767775882264,-637.59,0.00030095,2]
[400670098,1767775882274,-500.0,0.00030136,2]
[400670099,1767775882283,-500.0,0.00030136,2]
[400670100,1767775882292,-573.04822969,0.00030136,2]
[400670101,1767775882302,-500.0,0.00030136,2]
[400670102,1767775882310,-557.84,0.00030136,2]
[400670103,1767775882320,-500.0,0.00030136,2]
[400670104,1767775882330,-500.0,0.00030136,2]
[400670105,1767775882339,-500.0,0.00030136,2]
[400670106,1767775882350,-628.51847129,0.00030136,2]
[400670107,1767775882359,-1000.0,0.00030136,2]
[400670108,1767775882368,-500.0,0.00030136,2]
[400670109,1767775882378,-151.0,0.00030136,7]
[400670110,1767775882387,-151.0,0.00030136,7]
[400670111,1767775882397,-151.0,0.00030136,7]
[400670112,1767775882406,-151.0,0.00030136,7]
[400670113,1767775882415,-151.0,0.00030136,7]
[400670114,1767775882425,-582.84,0.00030136,2]
[400670115,1767775882436,-151.0,0.00030136,7]
[400670116,1767775882445,-151.0,0.00030136,7]
[400670117,1767775882455,-913.08,0.00030136,2]
[400670118,1767775882466,-500.0,0.00030136,2]
[400670119,1767775882475,-500.0,0.00030136,2]
[400670120,1767775882485,-500.0,0.00030136,2]
[400670121,1767775882494,-1000.0,0.00030136,2]
[400670122,1767775882504,-217.12147852,0.00030136,2]
[400670123,1767775882514,-756.53,0.00030136,2]
[400670124,1767775882523,-200.0,0.00030136,2]
[400670125,1767775882533,-500.0,0.00030136,2]
[400670126,1767775882543,-500.0,0.00030136,2]
[400670127,1767775882553,-337.65943768,0.00030136,2]
[400670128,1767775882563,-500.0,0.00030136,2]
[400670129,1767775882572,-500.0,0.00030136,2]
[400670130,1767775882582,-3991.84,0.00030136,2]
[400670131,1767775882591,-500.0,0.00030136,2]
[400670132,1767775882600,-233.7506501,0.00030136,2]
[400670133,1767775882611,-500.0,0.00030136,2]
[400670134,1767775882620,-500.0,0.00030136,2]
[400670135,1767775882630,-725.03,0.00030136,2]
[400670136,1767775882639,-500.0,0.00030136,2]
[400670137,1767775882649,-500.0,0.00030136,2]
[400670138,1767775882659,-500.0,0.00030136,2]
[400670139,1767775882668,-500.0,0.00030136,2]
[400670140,1767775882678,-836.74,0.00030136,2]
[400670141,1767775882688,-337.80003049,0.00030136,2]
[400670142,1767775882698,-956.27,0.00030136,2]
[400670143,1767775882708,-500.0,0.00030136,2]
[400670144,1767775882717,-4613.91,0.00030136,2]
[400670145,1767775882727,-678.0,0.00030136,2]
[400670146,1767775882736,-14665.45,0.00030136,2]
[400670147,1767775882749,-500.0,0.00030136,2]
[400670148,1767775882762,-500.0,0.00030136,2]
[400670149,1767775882771,-500.0,0.00030136,2]
[400670150,1767775882782,-500.0,0.00030136,2]
[400670151,1767775882791,-2787.6,0.00030136,2]
[400670152,1767775882801,-661.34,0.00030136,2]
[400670153,1767775882811,-500.0,0.00030136,2]
[400670154,1767775882821,-505.05,0.00030136,2]
[400670155,1767775882831,-3024.23,0.00030136,2]
[400670156,1767775882841,-717.62,0.00030136,2]
[400670157,1767775882851,-295.37107778,0.00030136,2]
[400670158,1767775882861,-909.99,0.00030136,2]
[400670159,1767775882871,-2410.47,0.00030136,6]
[400670160,1767775882880,-500.0,0.00030136,2]
[400670161,1767775882890,-601.36,0.00030136,2]
[400670162,1767775882900,-500.0,0.00030136,2]
[400670163,1767775882912,-500.0,0.00030136,2]
[400670164,1767775882922,-853.68,0.00030136,2]
[400670165,1767775882932,-387.48,0.00030136,2]
[400670166,1767775882941,-1076.6,0.00030136,2]
[400670167,1767775882950,-548.79,0.00030136,2]
[400670168,1767775882960,-1001.03390951,0.00030136,14]
[400670169,1767775882970,-5656.2215875,0.00030136,2]
[400670170,1767775882981,-689.83,0.00030136,2]
[400670171,1767775882991,-500.0,0.00030136,2]
[400670172,1767775883000,-690.11,0.00030136,2]
[400670173,1767775883010,-500.0,0.00030136,2]
[400670174,1767775883019,-540.36644475,0.00030136,2]
[400670175,1767775883028,-836.4,0.00030136,2]
[400670176,1767775883038,-500.0,0.00030136,2]
[400670177,1767775883048,-500.0,0.00030136,2]
[400670178,1767775883058,-797.84,0.00030136,2]
[400670179,1767775883068,-500.0,0.00030136,2]
[400670180,1767775883077,-3088.57,0.00030136,2]
[400670181,1767775883087,-500.0,0.00030136,2]
[400670182,1767775883097,-500.0,0.00030136,2]
[400670183,1767775883106,-1150.0,0.00030137,5]
[400670184,1767775883116,-500.0,0.00030137,120]
[400670185,1767775883125,-650.0,0.00030137,5]
[400670186,1767775883135,-650.0,0.00030137,5]
[400670187,1767775883144,-328.54602491,0.00030137,120]
[400670188,1767775883153,-721.35769055,0.00030137,120]
[400670189,1767775883163,-151.0,0.00030177,31]
[400670190,1767775883173,-151.0,0.00030177,31]
[400670191,1767775883182,-151.0,0.00030177,31]
[400670192,1767775883192,-151.0,0.00030177,31]
[400670193,1767775883201,-151.0,0.00030177,31]
[400670194,1767775883210,-214.456704,0.00030177,31]
[400670195,1767775883220,-214.456704,0.00030177,31]
[400670196,1767775883230,-214.456704,0.00030177,31]
[400670197,1767775883240,-214.456704,0.00030177,31]
[400670198,1767775883249,-151.0,0.00030177,31]
[400670199,1767775883258,-151.0,0.00030177,31]
[400670200,1767775883268,-151.0,0.00030177,31]
[400670201,1767775883374,-609.666208,0.00030177,31]
[400670202,1767775883384,-609.666208,0.00030177,31]
[400670203,1767775883394,-609.666208,0.00030177,31]
[400670204,1767775883404,-609.666208,0.00030177,31]
[400670205,1767775883414,-1626.684503,0.00030177,31]
[400670206,1767775883423,-1626.684503,0.00030177,31]
[400670207,1767775883432,-1626.684503,0.00030177,31]
[400670208,1767775883442,-1626.684503,0.00030177,31]
[400670209,1767775883452,-268.0,0.00030186,120]
[400670210,1767775883461,-775.0,0.00030187,2]
[400670211,1767775883470,-2811.62,0.000302,14]
[400670212,1767775883479,-2770.0,0.00030227,2]
[400670213,1767775883490,-33454.72959,0.0003024,2]
[400670214,1767775883500,-574.12855637,0.0003024,2]
[400670215,1767775883511,-2773.56790519,0.0003024,2]
[400670216,1767775883521,-775.0,0.00030317,2]
[400670217,1767775883531,-500.0,0.00030369,2]
[400670218,1767775883542,-500.0,0.00030369,2]
[400670219,1767775883552,-2251.87,0.00030369,2]
[400670220,1767775883563,-637.59,0.00030369,2]
[400670221,1767775883574,-2200.0,0.00030382,7]
[400670222,1767775883584,-500.0,0.0003041,2]
[400670223,1767775883595,-509.14416046,0.0003041,2]
[400670224,1767775883604,-307.11918499,0.0003041,2]
[400670225,1767775883614,-557.84,0.0003041,2]
[400670226,1767775883624,-500.0,0.0003041,2]
[400670227,1767775883634,-500.0,0.0003041,2]
[400670228,1767775883644,-500.0,0.0003041,2]
[400670229,1767775883654,-151.0,0.0003041,31]
[400670230,1767775883664,-1000.0,0.0003041,2]
[400670231,1767775883674,-500.0,0.0003041,2]
[400670232,1767775883684,-582.84,0.0003041,2]
[400670233,1767775883694,-913.08,0.0003041,2]
[400670234,1767775883703,-500.0,0.0003041,2]
[400670235,1767775883713,-500.0,0.0003041,2]
[400670236,1767775883722,-176.17125572,0.0003041,2]
[400670237,1767775883735,-1000.0,0.0003041,2]
[400670238,1767775883745,-756.53,0.0003041,2]
[400670239,1767775883759,-200.0,0.0003041,2]
[400670240,1767775883769,-500.0,0.0003041,2]
[400670241,1767775883779,-500.0,0.0003041,2]
[400670242,1767775883789,-500.0,0.0003041,2]
[400670243,1767775883799,-500.0,0.0003041,2]
[400670244,1767775883808,-3991.84,0.0003041,2]
[400670245,1767775883818,-500.0,0.0003041,2]
[400670246,1767775883827,-500.0,0.0003041,2]
[400670247,1767775883837,-500.0,0.0003041,2]
[400670248,1767775883846,-725.03,0.0003041,2]
[400670249,1767775883856,-363.03228562,0.0003041,2]
[400670250,1767775883865,-500.0,0.0003041,2]
[400670251,1767775883875,-500.0,0.0003041,2]
[400670252,1767775883886,-500.0,0.0003041,2]
[400670253,1767775883896,-836.74,0.0003041,2]
[400670254,1767775883905,-956.27,0.0003041,2]
[400670255,1767775883915,-442.87938089,0.0003041,2]
[400670256,1767775883926,-4613.91,0.0003041,2]
[400670257,1767775883936,-14665.45,0.0003041,2]
[400670258,1767775883945,-678.0,0.0003041,2]
[400670259,1767775883955,-500.0,0.0003041,2]
[400670260,1767775883965,-500.0,0.0003041,2]
[400670261,1767775883975,-500.0,0.0003041,2]
[400670262,1767775883985,-500.0,0.0003041,2]
[400670263,1767775883995,-2787.6,0.0003041,2]
[400670264,1767775884005,-661.34,0.0003041,2]
[400670265,1767775884014,-500.0,0.0003041,2]
[400670266,1767775884024,-505.05,0.0003041,2]
[400670267,1767775884034,-3024.23,0.0003041,2]
[400670268,1767775884044,-717.62,0.0003041,2]
[400670269,1767775884054,-909.99,0.0003041,2]
[400670270,1767775884063,-500.0,0.0003041,2]
[400670271,1767775884073,-601.36,0.0003041,2]
[400670272,1767775884083,-500.0,0.0003041,2]
[400670273,1767775884093,-500.0,0.0003041,2]
[400670274,1767775884103,-853.68,0.0003041,2]
[400670275,1767775884113,-1076.6,0.0003041,2]
[400670276,1767775884123,-5656.2215875,0.0003041,2]
[400670277,1767775884133,-689.83,0.0003041,2]
[400670278,1767775884142,-548.79,0.0003041,2]
[400670279,1767775884151,-500.0,0.0003041,2]
[400670280,1767775884161,-690.11,0.0003041,2]
[400670281,1767775884170,-500.0,0.0003041,2]
[400670282,1767775884179,-836.4,0.0003041,2]
[400670283,1767775884189,-500.0,0.0003041,2]
[400670284,1767775884198,-500.0,0.0003041,2]
[400670285,1767775884208,-215.570059,0.0003041,8]
[400670286,1767775884218,-215.570059,0.0003041,8]
[400670287,1767775884228,-797.84,0.0003041,2]
[400670288,1767775884238,-215.570059,0.0003041,8]
[400670289,1767775884248,-215.570059,0.0003041,8]
[400670290,1767775884257,-206.665209,0.0003041,31]
[400670291,1767775884267,-500.0,0.0003041,2]
[400670292,1767775884278,-206.665209,0.0003041,31]
[400670293,1767775884287,-206.665209,0.0003041,31]
[400670294,1767775884296,-3088.57,0.0003041,2]
[400670295,1767775884306,-206.665209,0.0003041,31]
[400670296,1767775884315,-500.0,0.0003041,2]
[400670297,1767775884325,-151.0,0.0003041,31]
[400670298,1767775884335,-185.60635,0.0003041,31]
[400670299,1767775884344,-151.0,0.0003041,31]
[400670300,1767775884353,-185.60635,0.0003041,31]
[400670301,1767775884364,-151.0,0.0003041,31]
[400670302,1767775884375,-185.60635,0.0003041,31]
[400670303,1767775884385,-164.507616,0.0003041,31]
[400670304,1767775884394,-185.60635,0.0003041,31]
[400670305,1767775884403,-316.0,0.00030411,14]
[400670306,1767775884413,-151.0,0.00030411,7]
[400670307,1767775884421,-151.0,0.00030411,31]
[400670308,1767775884431,-151.0,0.00030411,31]
[400670309,1767775884440,-2770.0,0.00030433,2]
[400670310,1767775884449,-2770.0,0.00030473,7]
[400670311,1767775884459,-1000.0,0.00030505,30]
[400670312,1767775884468,-1000.0,0.00030505,30]
[400670313,1767775884477,-1000.0,0.00030505,30]
[400670314,1767775884486,-654.62980361,0.00030533,2]
[400670315,1767775884495,-2200.0,0.00030539,7]
[400670316,1767775884505,-500.0,0.00030544,7]
[400670317,1767775884514,-160.0,0.00030546,120]
[400670318,1767775884524,-151.0,0.00030635,31]
[400670319,1767775884534,-151.0,0.00030635,31]
[400670320,1767775884544,-254.30157139,0.00030643,2]
[400670321,1767775884554,-500.0,0.00030643,2]
[400670322,1767775884562,-2251.87,0.00030643,2]
[400670323,1767775884572,-637.59,0.00030643,2]
[400670324,1767775884582,-2000.0,0.00030647,7]
[400670325,1767775884591,-775.0,0.00030674,2]
[400670326,1767775884600,-500.0,0.00030684,2]
[400670327,1767775884609,-557.84,0.00030684,2]
[400670328,1767775884619,-500.0,0.00030684,2]
[400670329,1767775884628,-174.802772,0.00030684,2]
[400670330,1767775884637,-500.0,0.00030684,2]
[400670331,1767775884647,-1000.0,0.00030684,2]
[400670332,1767775884656,-300.76193579,0.00030684,2]
[400670333,1767775884666,-582.84,0.00030684,2]
[400670334,1767775884675,-913.08,0.00030684,2]
[400670335,1767775884684,-500.0,0.00030684,2]
[400670336,1767775884693,-500.0,0.00030684,2]
[400670337,1767775884702,-1000.0,0.00030684,2]
[400670338,1767775884711,-756.53,0.00030684,2]
[400670339,1767775884721,-200.0,0.00030684,2]
[400670340,1767775884730,-500.0,0.00030684,2]
[400670341,1767775884744,-500.0,0.00030684,2]
[400670342,1767775884753,-500.0,0.00030684,2]
[400670343,1767775884762,-500.0,0.00030684,2]
[400670344,1767775884773,-3991.84,0.00030684,2]
[400670345,1767775884782,-500.0,0.00030684,2]
[400670346,1767775884791,-500.0,0.00030684,2]
[400670347,1767775884801,-360.8739275,0.00030684,2]
[400670348,1767775884812,-725.03,0.00030684,2]
[400670349,1767775884821,-500.0,0.00030684,2]
[400670350,1767775884835,-500.0,0.00030684,2]
[400670351,1767775884844,-500.0,0.00030684,2]
[400670352,1767775884853,-836.74,0.00030684,2]
[400670353,1767775884862,-956.27,0.00030684,2]
[400670354,1767775884871,-4613.91,0.00030684,2]
[400670355,1767775884882,-14665.45,0.00030684,2]
[400670356,1767775884891,-678.0,0.00030684,2]
[400670357,1767775884901,-500.0,0.00030684,2]
[400670358,1767775884911,-500.0,0.00030684,2]
[400670359,1767775884920,-500.0,0.00030684,2]
[400670360,1767775884929,-500.0,0.00030684,2]
[400670361,1767775884939,-2787.6,0.00030684,2]
[400670362,1767775884948,-661.34,0.00030684,2]
[400670363,1767775884958,-500.0,0.00030684,2]
[400670364,1767775884968,-505.05,0.00030684,2]
[400670365,1767775884978,-3024.23,0.00030684,2]
[400670366,1767775884989,-717.62,0.00030684,2]
[400670367,1767775885000,-909.99,0.00030684,2]
[400670368,1767775885009,-500.0,0.00030684,2]
[400670369,1767775885019,-601.36,0.00030684,2]
[400670370,1767775885030,-500.0,0.00030684,2]
[400670371,1767775885040,-500.0,0.00030684,2]
[400670372,1767775885050,-853.68,0.00030684,2]
[400670373,1767775885060,-1076.6,0.00030684,2]
[400670374,1767775885186,-5656.2215875,0.00030684,2]
[400670375,1767775885197,-689.83,0.00030684,2]
[400670376,1767775885207,-548.79,0.00030684,2]
[400670377,1767775885216,-528.13886245,0.00030684,2]
[400670378,1767775885226,-690.11,0.00030684,2]
[400670379,1767775885236,-500.0,0.00030684,2]
[400670380,1767775885245,-836.4,0.00030684,2]
[400670381,1767775885254,-500.0,0.00030684,2]
[400670382,1767775885263,-500.0,0.00030684,2]
[400670383,1767775885272,-797.84,0.00030684,2]
[400670384,1767775885281,-500.0,0.00030684,2]
[400670385,1767775885290,-3088.57,0.00030684,2]
[400670386,1767775885300,-500.0,0.00030684,2]
[400670387,1767775885309,-1299.19626571,0.00030685,5]
[400670388,1767775885318,-499.99,0.00030685,120]
[400670389,1767775885327,-316.0,0.00030685,14]
[400670390,1767775885337,-750.65512167,0.00030685,5]
[400670391,1767775885346,-750.0,0.00030685,5]
[400670392,1767775885356,-151.0,0.000307,31]
[400670393,1767775885365,-151.0,0.000307,31]
[400670394,1767775885375,-151.0,0.000307,31]
[400670395,1767775885384,-151.0,0.000307,31]
[400670396,1767775885394,-151.0,0.000307,31]
[400670397,1767775885403,-205.742012,0.000307,31]
[400670398,1767775885412,-237.212667,0.000307,31]
[400670399,1767775885422,-205.742012,0.000307,31]
[400670400,1767775885431,-205.742012,0.000307,31]
[400670401,1767775885440,-205.742012,0.000307,31]
[400670402,1767775885449,-151.0,0.000307,31]
[400670403,1767775885460,-204.454588,0.000307,31]
[400670404,1767775885469,-1664.343388,0.000307,31]
[400670405,1767775885478,-1664.343388,0.000307,31]
[400670406,1767775885488,-1664.343388,0.000307,31]
[400670407,1767775885497,-1016.281206,0.000307,31]
[400670408,1767775885507,-1016.281206,0.000307,31]
[400670409,1767775885516,-1016.281206,0.000307,31]
[400670410,1767775885526,-1016.281206,0.000307,31]
[400670411,1767775885535,-440.287203,0.000307,31]
[400670412,1767775885544,-440.287203,0.000307,31]
[400670413,1767775885554,-440.287203,0.000307,31]
[400670414,1767775885564,-440.287203,0.000307,31]
[400670415,1767775885573,-390.92977,0.000307,31]
[400670416,1767775885583,-390.92977,0.000307,31]
[400670417,1767775885592,-390.92977,0.000307,31]
[400670418,1767775885601,-390.92977,0.000307,31]
[400670419,1767775885610,-276.0357,0.000307,31]
[400670420,1767775885620,-151.0,0.000307,31]
[400670421,1767775885628,-151.0,0.000307,31]
[400670422,1767775885638,-634.815792,0.000307,28]
[400670423,1767775885647,-634.815792,0.000307,28]
[400670424,1767775885656,-634.815792,0.000307,28]
[400670425,1767775885665,-300.0,0.000307,31]
[400670426,1767775885674,-634.815792,0.000307,28]
[400670427,1767775885683,-300.0,0.000307,31]
[400670428,1767775885692,-300.0,0.000307,31]
[400670429,1767775885702,-151.0,0.000307,31]
[400670430,1767775885712,-300.0,0.000307,31]
[400670431,1767775885722,-187.815389,0.000307,31]
[400670432,1767775885739,-298.315005,0.000307,31]
[400670433,1767775885749,-187.815389,0.000307,31]
[400670434,1767775885758,-151.0,0.000307,2]
[400670435,1767775885768,-187.815389,0.000307,31]
[400670436,1767775885778,-298.315005,0.000307,31]
[400670437,1767775885787,-187.815389,0.000307,31]
[400670438,1767775885797,-298.315005,0.000307,31]
[400670439,1767775885805,-298.315005,0.000307,31]
[400670440,1767775885814,-612.995739,0.000307,31]